Cogmind - Beta 13 @@@ ROGUE MODE // 2024.04.17 @ 10:03:38 Player: Gabe+Kate4EVR Result: Destroyed by G-47 Trooper with Particle Gun Performance ------------- Evolutions (2) 1000 Regions Visited (3) 600 Robots Destroyed (57) 285 Value Destroyed (1594) 1594 Prototype IDs (1) 20 Alien Tech Used (0) 0 Bonus (0) 0 TOTAL SCORE: 3499 Bonus ------- None Cogmind --------- Core Integrity 0/550 Matter 174/300 Energy 42/100 System Corruption 0% Temperature Warm (112) Movement Core (250) Ox4 Location -8/Materials Parts ------- > --- POWER (2) -------- (None) > --- PROPULSION (4) --- (None) > --- UTILITY (3) ------ Improved Heat Sink Disposable Heat Sink > --- WEAPON (2) ------- Heavy Laser Heavy Ion Cannon > --- INVENTORY (5) ---- Improved Heat Sink Weight Redist. System Improved Power Shielding Small Laser Gauss Rifle Peak State ------------ > --- POWER ------------ Nuclear Core Nuclear Core > --- PROPULSION ------- Aluminum Leg VSS Leg VSS Leg VSS Leg > --- UTILITY ---------- Medium Storage Unit Improved Power Shielding Reactive Plating > --- WEAPON ----------- Heavy Assault Rifle Gauss Rifle > --- INVENTORY -------- Advanced Treads Improved Heat Sink Compact Matter Pod Weight Redist. System Improved Power Shielding Utility Shielding Small Laser Small Laser Improved Light Cannon Improved Datajack [Rating: 31] Favorites ----------- Power Light Nuclear Core Engine Ion Engine Power Core Light Nuclear Core Propulsion VSS Leg Leg VSS Leg Wheel Compact Wheel Hover Unit Hover Unit Flight Unit Flight Unit Utility Medium Storage Unit Device Weight Redist. System Storage Medium Storage Unit Protection Improved Power Shielding Weapon Small Laser Energy Gun Small Laser Energy Cannon Heavy Ion Cannon Ballistic Gun Light Assault Rifle Ballistic Cannon Improved Light Cannon Build | -11 -10 -9 -8 ------- Run | Yrd Mat Mat Mat Slots Evolved 4 | . . 2 2 Power 1 | . . . 1 Propulsion 2 | . . 2 . Utility 1 | . . . 1 Weapon . | . . . . Parts Attached 94 | 8 20 28 38 Power 16 | 1 4 3 8 Engine 9 | 1 4 2 2 Core 7 | . . 1 6 Reactor . | . . . . Propulsion 42 | 4 5 21 12 Treads . | . . . . Leg 27 | 2 1 12 12 Wheel 2 | 2 . . . Hover 6 | . 2 4 . Flight 7 | . 2 5 . Utility 17 | 1 8 . 8 Device 8 | . 4 . 4 Storage 7 | 1 4 . 2 Processor . | . . . . Hackware . | . . . . Protection 2 | . . . 2 Artifact . | . . . . Weapon 19 | 2 3 4 10 Energy Gun 9 | 1 2 3 3 Energy Cannon 1 | . . . 1 Ballistic Gun 7 | 1 1 1 4 Ballistic Cannon 2 | . . . 2 Launcher . | . . . . Special Weapon . | . . . . Impact Weapon . | . . . . Slashing Weapon . | . . . . Piercing Weapon . | . . . . Special Melee Weapon . | . . . . Unidentified Prototypes 1 | . . 1 . Parts Lost 33 | . 5 6 22 Power 6 | . 1 . 5 Propulsion 14 | . 2 3 9 Utility 5 | . . . 5 Weapon 8 | . 2 3 3 Highest Loss Streak 8 | . 4 3 8 To Critical Strikes . | . . . . Average Slot Usage (%) 86 | . 84 87 87 Engine 6 | . 12 5 1 Core 8 | . . 5 15 Leg 17 | . 6 14 26 Hover 6 | . 14 7 . Flight 4 | . 5 13 . Device 7 | . 8 11 5 Storage 12 | . 14 11 13 Protection 2 | . . . 6 Energy Gun 8 | . 10 13 4 Ballistic Gun 8 | . 11 5 8 Ballistic Cannon 1 | . . . 4 Naked Turns . | . . . . Heaviest Build 43 | 11 26 19 43 Greatest Support 55 | 32 20 50 55 Greatest Overweight (x) 3 | . 3 1 1 Average Overweight (x) . | . . . . Largest Inventory Capacity 15 | 8 15 10 10 Average Capacity 9 | 6 9 10 9 Most Carried 10 | 4 10 10 10 Average Carried 8 | 2 7 9 9 Final Capacity 10 | 8 10 10 5 Final Carried 10 | 4 10 10 5 Class Distribution -------------------- 50% | Scavenger-Mutant 49% | Mutant Dominant Class ---------------- Mutant | -10/Materials Scavenger-Mutant | -9/Materials Scavenger-Mutant | -8/Materials Resources | -11 -10 -9 -8 ----------- Run | Yrd Mat Mat Mat Matter Collected 1624 | 270 342 498 514 Remotely 20 | . 20 . . Salvage Created 2003 | 23 442 549 989 Parts 110 | 2 24 30 54 Haulers Intercepted 2 | . 1 . 1 Recyclers Shooed 9 | 1 2 2 4 Parts Field Recycled . | . . . . Retrieved Matter . | . . . . Parts Self-Destructed . | . . . . Prevented . | . . . . Kills | -11 -10 -9 -8 ------- Run | Yrd Mat Mat Mat Combat Hostiles Destroyed 43 | . 11 12 20 Guns 38 | . 11 12 15 Cannons 5 | . . . 5 Classes Destroyed 11 | 1 5 3 2 Worker 3 | . . 1 2 Builder 2 | . . 1 1 Tunneler 2 | 1 . . 1 Hauler 2 | . 1 . 1 Recycler 3 | . 1 . 2 Operator 2 | . 1 . 1 Swarmer 10 | . 5 2 3 Grunt 26 | . 6 8 12 Duelist 1 | . . . 1 Sentry 4 | . . 2 2 Hunter 2 | . . . 2 Best Kill Streak 8 | 1 8 7 4 Combat Bots Only 7 | . 6 7 3 Max Kills in Single Turn 2 | 1 1 1 2 Gunslinging . | . . . . Exploded . | . . . . Melee . | . . . . Uniques/NPCs Destroyed . | . . . . Combat | -11 -10 -9 -8 -------- Run | Yrd Mat Mat Mat Hostile Shots Fired 402 | . 80 85 237 Missed 90 | . 15 25 50 Damage Taken 4290 | . 614 731 2945 Core 894 | . 158 176 560 Absorbed by Shields . | . . . . Redirected to Shielding 100 | . . . 100 Regen/Repaired (Parts) 125 | . . . 125 Core Remaining (%) 64 | 100 36 56 . Volleys Fired 252 | 5 72 67 108 Largest 2 | 1 2 2 2 Hottest 134 | 50 90 80 134 Shots Fired 413 | 5 107 101 200 Gun 360 | 5 107 101 147 Cannon 53 | . . . 53 Launcher . | . . . . Special . | . . . . Kinetic 203 | . 42 33 128 Thermal 193 | 5 48 68 72 Explosive . | . . . . Electromagnetic 17 | . 17 . . Robot Hit Streak 12 | 3 12 9 9 Robot Miss Streak 5 | 1 5 5 5 Penetration Max 1 | . . . 1 Secondary Targets 9 | . 3 4 2 Max Gunslinging Chain 1 | . 1 1 1 Shots Hit Robots 244 | 4 64 66 110 Core Hits 110 | 1 28 28 53 Critical Kills . | . . . . Critical Parts Destroyed 2 | . . . 2 Critical Strikes 8 | . 5 . 3 Burn 5 | . 4 . 1 Destroy 2 | . . . 2 Corrupt 1 | . 1 . . Melee Attacks . | . . . . Impact . | . . . . Slashing . | . . . . Piercing . | . . . . Sneak Attacks . | . . . . Combat Hostiles . | . . . . Follow-up Attacks . | . . . . Damage Inflicted 3583 | 51 625 751 2156 Guns 2943 | 51 625 748 1519 Cannons 637 | . . . 637 Explosions . | . . . . Melee . | . . . . Ramming 3 | . . 3 . Kinetic 1933 | . 214 232 1487 Thermal 1568 | 51 332 516 669 Explosive . | . . . . Electromagnetic 79 | . 79 . . Impact . | . . . . Slashing . | . . . . Piercing . | . . . . Highest Corruption 2 | . 2 . . Average Corruption 2 | . 2 . . Corruption Purged . | . . . . Corruption Blocked . | . . . . Effects 3 | . 3 . . Heat Flow Errors 1 | . 1 . . Energy Discharges 1 | . 1 . . Misfires 1 | . 1 . . Overload Shots . | . . . . Overflow Damage 15 | . . . 15 Projectiles 15 | . . . 15 Explosions . | . . . . Melee . | . . . . Knockbacks 11 | . . . 11 Impact . | . . . . Kinetic 11 | . . . 11 Secondary . | . . . . Self-Inflicted Damage 1 | . . 1 . Shots . | . . . . Rammed 1 | . . 1 . Targets Rammed 1 | . . 1 . Kicked . | . . . . Crushed . | . . . . Highest Temperature 430 | . 396 129 430 Average Temperature 118 | . 126 33 149 Received Heat Transfer 2172 | . 204 357 1611 Effects 11 | . . . 11 Shutdowns 4 | . . . 4 Energy Bleed 1 | . . . 1 Interference 3 | . . . 3 Matter Decay 1 | . . . 1 Damage (minor) 2 | . . . 2 Siege Activations . | . . . . Robots Corrupted . | . . . . Combat Hostiles . | . . . . Parts Fried . | . . . . Impact Corruptions . | . . . . Robots Melted . | . . . . Combat Hostiles . | . . . . Parts Melted 10 | . 3 1 6 Heat Transferred 4154 | 148 1271 1200 1535 Parts Sabotaged . | . . . . Parts Stolen . | . . . . Parts Stripped . | . . . . Power Chain Reactions . | . . . . Alert | -11 -10 -9 -8 ------- Run | Yrd Mat Mat Mat Peak Influence 355 | 5 255 307 355 Initial 97 | . 3 72 97 Average 179 | 4 140 181 223 Maximum Alert Level 1 | . 1 1 1 Low Security (%) 54 | 100 68 50 41 Level 1 45 | . 31 49 58 Level 2 . | . . . . Level 3 . | . . . . Level 4 . | . . . . Level 5 . | . . . . High Security . | . . . . Max Security . | . . . . Squads Dispatched 10 | . 3 2 5 Investigation 3 | . 1 1 1 Extermination . | . . . . Reinforcement 7 | . 2 1 4 Assault . | . . . . Garrison . | . . . . Intercept . | . . . . Searches Triggered . | . . . . Construction Impeded 2 | . . . 2 Haulers Reinforced . | . . . . Active Scanning Responses . | . . . . Cargo Convoy Interrupts . | . . . . Stealth | -11 -10 -9 -8 --------- Run | Yrd Mat Mat Mat Distress Signals 15 | . 4 2 9 Communications Jammed . | . . . . Distress Signals . | . . . . Times Spotted 93 | . 24 22 47 Peak Tracking Total 7 | . 7 6 7 Tactical Retreats 5 | . 2 2 1 Traps | -11 -10 -9 -8 ------- Run | Yrd Mat Mat Mat Traps Triggered 3 | . 2 . 1 Indirectly . | . . . . Trap Hack Attempts . | . . . . Triggered . | . . . . Disarmed . | . . . . Reprogrammed . | . . . . Reused . | . . . . Traps Extracted . | . . . . Installed . | . . . . Triggered . | . . . . Machines | -11 -10 -9 -8 ---------- Run | Yrd Mat Mat Mat Machines Disabled 2 | . . . 2 Max in Single Turn 1 | . . . 1 Machines Repaired . | . . . . Machines Dismantled . | . . . . Machines Sabotaged . | . . . . Overloaded Fab Kills . | . . . . Hacking | -11 -10 -9 -8 --------- Run | Yrd Mat Mat Mat Machines Accessed 7 | . 4 1 2 Terminals 5 | . 4 . 1 Fabricators . | . . . . Repair Stations 1 | . . . 1 Recycling Units . | . . . . Scanalyzers 1 | . . 1 . Garrison Access . | . . . . Total Hacks 24 | . 11 4 9 Successful 12 | . 3 3 6 Failed 12 | . 8 1 3 Catastrophic 3 | . 3 . . Database Lockouts . | . . . . Manual 6 | . 6 . . Terminals 14 | . 11 . 3 Fabricators . | . . . . Repair Stations 6 | . . . 6 Recycling Units . | . . . . Scanalyzers 4 | . . 4 . Garrison Access . | . . . . Terminal Hacks 5 | . 3 . 2 Branch Access Points 1 | . 1 . . Terminal Index 1 | . 1 . . Hauler Manifests 1 | . . . 1 Registered Components 1 | . . . 1 Zone Layout 1 | . 1 . . Fabricator Hacks . | . . . . Repair Station Hacks 4 | . . . 4 Scan Component 2 | . . . 2 Repair 2 | . . . 2 Recycling Unit Hacks . | . . . . Scanalyzer 3 | . . 3 . Insert Component 1 | . . 1 . Analyze 2 | . . 2 . Garrison Access Hacks . | . . . . Unauthorized Hacks . | . . . . Terminals . | . . . . Fabricators . | . . . . Repair Stations . | . . . . Recycling Units . | . . . . Scanalyzers . | . . . . Garrison Access . | . . . . Data Cores Recovered . | . . . . Used . | . . . . Hacking Detections 7 | . 4 1 2 Full Trace Events 2 | . 1 1 . Feedback Events . | . . . . Feedback Blocked . | . . . . Robot Schematics Acquired . | . . . . Robots Built . | . . . . Authchips . | . . . . Time . | . . . . Total Robot Build Rating . | . . . . Part Schematics Acquired 1 | . . 1 . Parts Built . | . . . . Authchips . | . . . . Time . | . . . . Total Part Build Rating . | . . . . Parts Repaired 2 | . . . 2 Time 76 | . . . 76 Parts Recycled . | . . . . Recycled Matter . | . . . . Retrieved Matter . | . . . . Retrieved Components . | . . . . Parts Scanalyzed 1 | . . 1 . Part Schematics Acquired 1 | . . 1 . Parts Damaged . | . . . . Bothacking | -11 -10 -9 -8 ------------ Run | Yrd Mat Mat Mat Used RIF Installer . | . . . . Robots Hacked . | . . . . Non-combat . | . . . . Combat . | . . . . Robot Hacks Applied . | . . . . Relay Couplers Released . | . . . . Fabnet Peak Effective % . | . . . . Robots Rewired . | . . . . Allies Hacked . | . . . . Hacks Repelled . | . . . . Allies | -11 -10 -9 -8 -------- Run | Yrd Mat Mat Mat Total Allies . | . . . . Largest Group . | . . . . Highest-Rated Group . | . . . . Highest-Rated Ally . | . . . . Total Orders . | . . . . Ally Attacks . | . . . . Total Damage . | . . . . Kills . | . . . . Allies Corrupted . | . . . . Allies Melted . | . . . . Intel | -11 -10 -9 -8 ------- Run | Yrd Mat Mat Mat Robot Analysis Total . | . . . . Derelict Logs Recovered . | . . . . Drone Launches . | . . . . Drone Recoveries . | . . . . Exploration | -11 -10 -9 -8 ------------- Run | Yrd Mat Mat Mat Turns Passed 2359 | 97 694 561 1007 Spaces Moved 1610 | 65 659 421 465 Core 20 | 7 13 . . Treads . | . . . . Legs 685 | 54 63 103 465 Wheels 4 | 4 . . . Hover 500 | . 409 91 . Flight 401 | . 174 227 . Fastest Speed 34 | 50 37 34 90 Average Speed 85 | 111 64 78 117 Slowest Speed 200 | 120 200 140 185 Overloaded Moves . | . . . . Propulsion Burnouts . | . . . . Robots Hopped 6 | . 3 3 . Cave-ins Triggered . | . . . . Exploration Rate (%) 34 | 3 75 24 35 Regions Visited 3 Branch Regions . Pre-discovered Areas . | . . . . Known Exits Taken . | . . . . Unknown Exits Taken 3 | 1 1 1 . Scrap Searched . | . . . . Spaces Dug . | . . . . Terrain Destroyed 3 | . . . 3 Melee . | . . . . Projectile 3 | . . . 3 AOE . | . . . . Terrain Rammed . | . . . . Walls Destroyed . | . . . . Machines Disabled . | . . . . Actions | -11 -10 -9 -8 --------- Run | Yrd Mat Mat Mat Total 2182 | 81 825 551 725 Wait 146 | . 53 8 85 Move 1595 | 64 652 414 465 Hop 6 | . 3 3 . Pick Up 26 | 2 9 8 7 Fast Attach 56 | 8 13 15 20 Attach 15 | . 3 5 7 Detach 16 | 2 5 4 5 Swap 24 | . 4 9 11 Drop 45 | . 11 17 17 Fire 252 | 5 72 67 108 Melee . | . . . . Ram 1 | . . 1 . Kick . | . . . . Crush . | . . . . Escape Stasis . | . . . . Rewire . | . . . . Trap . | . . . . Miscellaneous . | . . . . Route ------- -11/Scrapyard -10/Materials (discovered 3 exits: *Mat x2 / *Min) -9/Materials -8/Materials (discovered 1 exit: [*Sto]) History --------- Turn | Location | Event 2 | -11/Scrapyard | Met Revision 17 16 | -11/Scrapyard | Discovered new exit (range 14) 98 | -11/Scrapyard | Entered Materials 142 | -10/Materials | Discovered new exit (range 16) 308 | -10/Materials | Lost 4 parts (1p2n1w) 388 | -10/Materials | Core integrity fell below 50% 517 | -10/Materials | Discovered new exit (range 14) 598 | -10/Materials | Derelicts attacked the area 624 | -10/Materials | Discovered new exit (range 4) 632 | -10/Materials | Identified exit to Mines 792 | -10/Materials | Entered another Materials area 792 | -9/Materials | Evolved 2 slots: Propulsion x2 986 | -9/Materials | Destroyed 7 combat bots 994 | -9/Materials | Lost 3 parts (1n2w) 1266 | -9/Materials | Discovered new exit (range 4) 1353 | -9/Materials | Entered another Materials area 1353 | -8/Materials | Evolved 2 slots: Power x1, Utility x1 1443 | -8/Materials | Lost 4 parts (2p2u) 1448 | -8/Materials | Discovered new exit (range 13) 1539 | -8/Materials | Lost 3 parts (1p2n) 1582 | -8/Materials | Repaired VSS Leg 1623 | -8/Materials | Repaired VSS Leg 1992 | -8/Materials | Build established: Mutant 2074 | -8/Materials | Core integrity fell below 50% 2141 | -8/Materials | Lost 4 parts (2n1u1w) 2258 | -8/Materials | Lost 3 parts (1n1u1w) 2336 | -8/Materials | Core integrity fell below 20% 2360 | -8/Materials | Destroyed by G-47 Trooper with Particle Gun Last Messages --------------- 02321_ Critical hit (Burn: +37). 02322_ G-47 Trooper destroyed. 02322_ K-01 Serf collects debris. 02330_ Lgt. Nuclear Core destroyed. 02331_ Particle Gun destroyed. 02331_ Critical hit (Burn: +37). 02332_ K-01 Serf collects debris. 02335_ Carbon-fiber Leg destroyed. 02336_ Core Shielding melted. 02336_ L-31 Rogue destroyed. 02337_ K-01 Serf collects debris. 02338_ Acquired 42 matter. 02350_ Med. Storage Unit destroyed. 02352_ Carbon-fiber Leg destroyed. 02352_ Aluminum Leg destroyed. 02353_ Acquired Hvy. Ion Cannon. 02354_ Nuclear Core destroyed. 02356_ Critical hit (Burn: +37). 02360_ Carbon-fiber Leg destroyed. 02360_ Critical hit (Burn: +37). Map ----- +----------------------------------------------------+ | ?????????????????????????????????????????????????? | | ?????????????????????????????????????????????????? | | ?????????????????????????????????????????????????? | | ?????????????????????????????????????????????????? | | ?????????????????????????????????????????????????? | | ?????????????????????????????????????????????????? | | ???????????????????? ??????????????????????????? | | ???????????????????# #?????????????????????????? | | ??????????????????? #?????????????????????????? | | ?????????????????? #?????????????????????????? | | ??????????????????? +?????????????????????????? | | ??????????????????? #?????????????????????????? | | ??????????????????? #?????????????????????????? | | ??????????????????? #?????????????????????????? | | ???????????????????# #?????????????????????????? | | ######+############# #?????????????????????????? | | g #?????????????????????????? | | #?????????????????????????? | | T = #?????????????????????????? | | =%= """[% #####?????????????????????? | | """""* ==#?????????????????????? | | #### = """" g ==#?????????????????????? | | ???# =%/ """ / [[#?????????????????????? | | ???# * ""g = [[#?????????????????????? | | ???# g ! [!!]]#?????????????????????? | | ???# g / @]#?????????????????????? | | ???# #####?????????????????????? | | ???# ??????????????????????? | | ???# #############+######?????????????????????? | | ???# #????????????????????????????????????????? | | ???# #????????????????????????????????????????? | | ???# #????????????????????????????????????????? | | ???# #????????????????????????????????????????? | | ???# #????????????????????????????????????????? | | ???# #????????????????????????????????????????? | | ???# ????????????????????????????????????????? | | ???# ????????????????????????????????????????? | | ???# ????????????????????????????????????????? | | ???# ????????????????????????????????????????? | | ???# ????????????????????????????????????????? | | ???# ???????????????????????????????????????? | | ???# ##???????????????????????????????????????? | | ???? ?????????????????????????????????????????? | | ?????????????????????????????????????????????????? | | ?????????????????????????????????????????????????? | | ?????????????????????????????????????????????????? | | ?????????????????????????????????????????????????? | | ?????????????????????????????????????????????????? | | ?????????????????????????????????????????????????? | | ?????????????????????????????????????????????????? | +----------------------------------------------------+ Best States ------------- Heat Dissipation 45 Coolant Potential 50 Energy Generation 23 Energy Capacity 560 Matter Stores 314 Matter Capacity 450 Sight Range 16 Terrain Scan Density 10 Additional Mass Support 6 Armor Coverage 150 Resistance: KI 20 Power Shielding 66 Evasion (%) 63 Recoil Reduction 4 Item Schematics ----------------- VSS Leg | -9/Materials | Scanalyzed Robot Schematics ------------------ None Fabricated ------------ Nothing Alien Tech Used ----------------- None Achievements -------------- None Challenges ------------ None Game ------ Seed CoolingCoolingRifle Manual? 0 Play Time 00:23:04 Cumulative 97.4 hours Start 2024.04.17 @ 09:40:33 End 2024.04.17 @ 10:03:38 Sessions 1 Manual Loads 0 Difficulty Rogue Special Mode None Game No. 196 Rogue 196 Adventurer 0 Explorer 0 Win Type - Total 0 Types 0/0/0/0/0/0/0/0/0 Lore% 31 Gallery% 50 Achievement% 35 Wizard Run 0 Options --------- Layout 0 ASCII 0 Keyboard 1 Movement Numpad Keybinds 0 Fullscreen 1 Font 18/X11 Map View 76x50 Zoom Use 0% Tactical HUD 1 Map Filters NONE Filters NONE Steam 1 RUN: d36d778c-7617-40ba-8513-bfa2434101a6